fUST/lending_fUST_20260414
["ID","MTS","AMOUNT","RATE_DAILY","PERIOD"]
[420438744,1776096062503,-2465.49860194,6.793e-05,2]
[420441753,1776096459040,-151.0,0.00010033,30]
[420441762,1776096460321,-151.0,0.00010033,30]
[420441773,1776096461439,-99.24930384,0.00010033,30]
[420442969,1776096633202,-1548.40651717,4.705e-05,2]
[420442971,1776096633280,-1071.458,4.705e-05,2]
[420443017,1776096638767,-734.368,4.705e-05,2]
[420443020,1776096638931,-939.01455542,4.705e-05,2]
[420443021,1776096638946,-706.75292741,4.705e-05,2]
[420443023,1776096638957,-5000.0,4.753e-05,2]
[420443025,1776096638969,-300.0,4.801e-05,2]
[420443027,1776096638977,-227.11087528,4.802e-05,2]
[420443028,1776096638989,-2533.1751,4.802e-05,2]
[420443030,1776096639006,-648.2291472,5e-05,2]
[420443031,1776096639018,-8588.8462,5e-05,2]
[420443032,1776096639028,-1266.5875,5.042e-05,2]
[420443033,1776096639037,-300.0,5.099e-05,2]
[420443034,1776096639051,-300.0,5.099e-05,2]
[420443036,1776096639061,-300.0,5.099e-05,2]
[420443037,1776096639070,-300.0,5.099e-05,2]
[420443038,1776096639080,-300.0,5.099e-05,2]
[420443039,1776096639095,-300.0,5.099e-05,2]
[420443040,1776096639104,-300.0,5.099e-05,2]
[420443041,1776096639118,-300.0,5.099e-05,2]
[420443042,1776096639131,-300.0,5.099e-05,2]
[420443043,1776096639147,-300.0,5.099e-05,2]
[420443044,1776096639158,-300.0,5.099e-05,2]
[420443045,1776096639169,-300.0,5.099e-05,2]
[420443047,1776096639197,-300.0,5.099e-05,2]
[420443048,1776096639207,-300.0,5.099e-05,2]
[420443049,1776096639224,-300.0,5.099e-05,2]
[420443050,1776096639234,-502.28229534,5.25e-05,2]
[420443066,1776096640936,-2419.67868723,5.25e-05,2]
[420443130,1776096646541,-246.0,5.281e-05,2]
[420443131,1776096646573,-422.1958,5.522e-05,2]
[420443132,1776096646599,-1431.4743,5.75e-05,2]
[420443134,1776096646624,-267.99083283,6.802e-05,2]
[420443135,1776096646635,-974.59536601,6.931e-05,2]
[420443136,1776096646662,-252.8941271,6.931e-05,2]
[420443137,1776096646681,-304.7,6.931e-05,2]
[420443138,1776096646758,-86.17631535,6.931e-05,2]
[420444054,1776096773410,-151.0,7.896e-05,24]
[420444065,1776096774764,-6.96,7.896e-05,24]
[420444498,1776096836118,-151.0,7.896e-05,17]
[420449233,1776097832822,-2893.92330361,3.198e-05,2]
[420449234,1776097832855,-441.70512035,3.198e-05,2]
[420449282,1776097839144,-479.79220955,3.198e-05,2]
[420449283,1776097839162,-5000.0,3.23e-05,2]
[420449284,1776097839173,-243.86142398,3.33e-05,2]
[420449285,1776097839185,-1941.6543,3.33e-05,2]
[420449286,1776097839203,-246.0,3.395e-05,2]
[420449287,1776097839213,-300.0,3.396e-05,2]
[420449288,1776097839223,-300.0,3.396e-05,2]
[420449289,1776097839244,-300.0,3.396e-05,2]
[420449290,1776097839254,-300.0,3.396e-05,2]
[420449291,1776097839277,-300.0,3.396e-05,2]
[420449292,1776097839289,-300.0,3.396e-05,2]
[420449293,1776097839298,-300.0,3.396e-05,2]
[420449294,1776097839322,-300.0,3.396e-05,2]
[420449295,1776097839335,-300.0,3.396e-05,2]
[420449296,1776097839347,-300.0,3.396e-05,2]
[420449297,1776097839365,-300.0,3.396e-05,2]
[420449298,1776097839375,-300.0,3.396e-05,2]
[420449299,1776097839387,-300.0,3.396e-05,2]
[420449300,1776097839402,-300.0,3.396e-05,2]
[420449301,1776097839417,-300.0,3.396e-05,2]
[420449302,1776097839442,-191.590741,3.398e-05,2]
[420449303,1776097839458,-86.05430165,3.463e-05,2]
[420449361,1776097846811,-306.67,3.463e-05,2]
[420449362,1776097846993,-207.27569835,3.463e-05,2]
[420449363,1776097847009,-970.8271,3.497e-05,2]
[420449364,1776097847023,-720.0,3.809e-05,2]
[420449365,1776097847046,-323.609,3.829e-05,2]
[420449366,1776097847056,-864.0,4.19e-05,2]
[420449367,1776097847071,-388.56984478,4.609e-05,2]
[420452512,1776099038079,-5000.0,3.244e-05,2]
[420452513,1776099038098,-788.3117,3.277e-05,2]
[420452514,1776099038111,-334.34781993,3.335e-05,2]
[420452515,1776099038124,-394.1558,3.441e-05,2]
[420452516,1776099038142,-300.0,3.444e-05,2]
[420452517,1776099038152,-300.0,3.444e-05,2]
[420452518,1776099038162,-300.0,3.444e-05,2]
[420452520,1776099038189,-300.0,3.444e-05,2]
[420452521,1776099038206,-300.0,3.444e-05,2]
[420452522,1776099038218,-300.0,3.444e-05,2]
[420452523,1776099038235,-300.0,3.444e-05,2]
[420452524,1776099038250,-300.0,3.444e-05,2]
[420452525,1776099038263,-300.0,3.444e-05,2]
[420452526,1776099038290,-300.0,3.444e-05,2]
[420452527,1776099038300,-300.0,3.444e-05,2]
[420452528,1776099038311,-300.0,3.444e-05,2]
[420452530,1776099038334,-300.0,3.444e-05,2]
[420452531,1776099038344,-300.0,3.444e-05,2]
[420452532,1776099038354,-300.0,3.444e-05,2]
[420452533,1776099038384,-600.0,3.512e-05,2]
[420452534,1776099038407,-720.0,3.863e-05,2]
[420452535,1776099038418,-4148.086591,4.229e-05,2]
[420452536,1776099038433,-864.0,4.249e-05,2]
[420452537,1776099038444,-1000.0,4.674e-05,2]
[420452538,1776099038454,-151.0,5e-05,2]
[420452540,1776099038465,-1000.0,5.142e-05,2]
[420452541,1776099038476,-244.0,5.142e-05,2]
[420452542,1776099038487,-394.53042752,5.335e-05,2]
[420452543,1776099038498,-4113.0584841,5.43e-05,2]
[420452544,1776099038508,-500.0,5.479e-05,2]
[420452545,1776099038521,-1000.0,5.656e-05,2]
[420452546,1776099038533,-492.0,5.656e-05,2]
[420452547,1776099038543,-1000.0,6.221e-05,2]
[420452548,1776099038558,-791.0,6.221e-05,2]
[420452549,1776099038568,-300.0,6.509e-05,2]
[420452550,1776099038579,-1000.0,6.844e-05,2]
[420452551,1776099038589,-1000.0,6.844e-05,2]
[420452552,1776099038601,-500.0,6.998e-05,2]
[420452553,1776099038613,-500.0,6.999e-05,2]
[420452555,1776099038624,-261.74877476,6.999e-05,2]
[420452556,1776099038633,-408.99987152,6.999e-05,2]
[420452557,1776099038645,-500.0,6.999e-05,2]
[420452558,1776099038657,-274.58152894,6.999e-05,2]
[420452559,1776099038671,-600.0,6.999e-05,2]
[420452560,1776099038681,-151.0,6.999e-05,2]
[420452561,1776099038692,-151.0,6.999e-05,2]
[420452562,1776099038712,-110488.56,7e-05,2]
[420452563,1776099038722,-4059.15438478,7e-05,2]
[420452564,1776099038732,-151.0,7e-05,2]
[420452565,1776099038749,-276.14676233,7.106e-05,2]
[420452567,1776099038762,-1103.48246228,7.106e-05,2]
[420452568,1776099038774,-500.0,7.16e-05,2]
[420452569,1776099038793,-500.0,7.16e-05,2]
[420452570,1776099038810,-500.0,7.16e-05,2]
[420452571,1776099038820,-454.71303511,7.335e-05,2]
[420452572,1776099038838,-1000.0,7.528e-05,2]
[420452573,1776099038848,-1000.0,7.528e-05,2]
[420452574,1776099038864,-579.0,7.528e-05,2]
[420452575,1776099038879,-151.5,8.219e-05,2]
[420452577,1776099038904,-190.58941715,8.219e-05,2]
[420452578,1776099038915,-151.5,8.219e-05,2]
[420452579,1776099038933,-500.0,8.219e-05,2]
[420452580,1776099038945,-251.90313984,8.219e-05,2]
[420452581,1776099038959,-298.02100531,8.219e-05,2]
[420452582,1776099038970,-500.0,8.219e-05,2]
[420452583,1776099039011,-500.0,8.219e-05,2]
[420452584,1776099039027,-611.33713091,8.219e-05,2]
[420452586,1776099039047,-500.0,8.219e-05,2]
[420452587,1776099039063,-500.0,8.219e-05,2]
[420452588,1776099039077,-500.0,8.219e-05,2]
[420452589,1776099039093,-500.0,8.219e-05,2]
[420452590,1776099039103,-500.0,8.219e-05,2]
[420452591,1776099039116,-500.0,8.219e-05,2]
[420452592,1776099039136,-500.0,8.219e-05,2]
[420452593,1776099039160,-151.5,8.219e-05,2]
[420452594,1776099039170,-500.0,8.219e-05,2]
[420452595,1776099039179,-500.0,8.219e-05,2]
[420452596,1776099039195,-254.1694402,8.219e-05,2]
[420452598,1776099039209,-500.0,8.219e-05,2]
[420452599,1776099039222,-563.64478934,8.219e-05,2]
[420452600,1776099039235,-500.0,8.219e-05,2]
[420452601,1776099039253,-500.0,8.219e-05,2]
[420452602,1776099039272,-500.0,8.219e-05,2]
[420452603,1776099039283,-500.0,8.219e-05,2]
[420452604,1776099039296,-500.0,8.219e-05,2]
[420452605,1776099039313,-500.0,8.219e-05,2]
[420452606,1776099039322,-500.0,8.219e-05,2]
[420452607,1776099039341,-151.5,8.219e-05,2]
[420452608,1776099039362,-179.8793214,8.219e-05,2]
[420452610,1776099039387,-151.5,8.219e-05,2]
[420452611,1776099039408,-500.0,8.219e-05,2]
[420452612,1776099039419,-500.0,8.219e-05,2]
[420452613,1776099039445,-151.5,8.219e-05,2]
[420452614,1776099039456,-250.20005146,8.219e-05,2]
[420452615,1776099039478,-500.0,8.219e-05,2]
[420452616,1776099039498,-245.88166838,8.219e-05,2]
[420452617,1776099039529,-243.96439656,8.219e-05,2]
[420452621,1776099039544,-500.0,8.219e-05,2]
[420452622,1776099039572,-500.0,8.219e-05,2]
[420452624,1776099039583,-500.0,8.219e-05,2]
[420452625,1776099039598,-500.0,8.219e-05,2]
[420452626,1776099039617,-500.0,8.219e-05,2]
[420452627,1776099039638,-500.0,8.219e-05,2]
[420452628,1776099039652,-500.0,8.219e-05,2]
[420452629,1776099039666,-175.25891168,8.219e-05,2]
[420452630,1776099039679,-321.83112218,8.219e-05,2]
[420452631,1776099039690,-500.0,8.219e-05,2]
[420452633,1776099039712,-500.0,8.219e-05,2]
[420452634,1776099039723,-500.0,8.219e-05,2]
[420452635,1776099039736,-500.0,8.219e-05,2]
[420452636,1776099039755,-500.0,8.219e-05,2]
[420452637,1776099039776,-500.0,8.219e-05,2]
[420452638,1776099039789,-500.0,8.219e-05,2]
[420452639,1776099039803,-500.0,8.219e-05,2]
[420452640,1776099039815,-500.0,8.219e-05,2]
[420452642,1776099039830,-500.0,8.219e-05,2]
[420452644,1776099039840,-373.82767954,8.219e-05,2]
[420452646,1776099039863,-500.0,8.219e-05,2]
[420452648,1776099039874,-500.0,8.219e-05,2]
[420452649,1776099039884,-517.66606471,8.219e-05,2]
[420452650,1776099039896,-2000.0,8.219e-05,2]
[420452651,1776099039909,-262.337877,8.278e-05,2]
[420452652,1776099039920,-1000.0,8.281e-05,2]
[420452653,1776099039930,-1000.0,8.281e-05,2]
[420452654,1776099039960,-1000.0,8.281e-05,2]
[420452655,1776099039970,-4059.15438477,8.538e-05,2]
[420452656,1776099039981,-262.337877,8.627e-05,2]
[420452659,1776099040208,-579.16457705,8.809e-05,2]
[420452660,1776099040248,-262.337877,8.975e-05,2]
[420452661,1776099040269,-181.93,9e-05,2]
[420452662,1776099040288,-186.71,9e-05,2]
[420452663,1776099040299,-1000.0,9.109e-05,2]
[420452664,1776099040318,-1000.0,9.109e-05,2]
[420452665,1776099040329,-1000.0,9.109e-05,2]
[420452666,1776099040339,-715.0,9.109e-05,2]
[420452668,1776099040362,-807.88900058,9.115e-05,2]
[420452669,1776099040371,-3228.3244463,9.115e-05,2]
[420452670,1776099040382,-165.76244988,9.115e-05,2]
[420452671,1776099040398,-662.38674974,9.115e-05,2]
[420452672,1776099040408,-262.337877,9.324e-05,2]
[420452673,1776099040419,-514.8956427,9.335e-05,2]
[420452674,1776099040430,-151.0,9.589e-05,2]
[420452675,1776099040450,-151.0,9.589e-05,2]
[420452676,1776099040461,-151.0,9.589e-05,2]
[420452677,1776099040486,-151.0,9.589e-05,2]
[420452678,1776099040497,-262.337877,9.672e-05,2]
[420452680,1776099040514,-197.99590511,9.716e-05,2]
[420452681,1776099040526,-4059.15438477,9.975e-05,2]
[420452682,1776099040538,-1485.73964462,0.0001,2]
[420452683,1776099040555,-4181.90437247,0.0001,2]
[420452684,1776099040571,-291.6707433,0.0001,2]
[420452685,1776099040596,-268.07327728,0.0001,2]
[420452686,1776099040614,-212.19013099,0.0001,2]
[420452687,1776099040632,-537.6845,0.00010017,2]
[420452688,1776099040648,-1957.856,0.00010017,2]
[420452689,1776099040659,-569.98638677,0.00010017,2]
[420452691,1776099040669,-2150.738,0.00010017,2]
[420452692,1776099040679,-1000.0,0.0001002,2]
[420452693,1776099040703,-1000.0,0.0001002,2]
[420452694,1776099040713,-1000.0,0.0001002,2]
[420452695,1776099040725,-262.337877,0.00010021,2]
[420452696,1776099040740,-557.5788265,0.00010072,2]
[420452697,1776099040751,-1485.4018829,0.00010072,2]
[420452698,1776099040761,-151.0,0.000101,2]
[420452699,1776099040774,-268.255733,0.000101,2]
[420452700,1776099040791,-578.20924308,0.00010127,2]
[420452701,1776099040806,-599.60298507,0.00010182,2]
[420452703,1776099040816,-380.67445919,0.00010206,2]
[420452704,1776099040829,-1521.17513894,0.00010206,2]
[420452705,1776099040843,-621.78829552,0.00010237,2]
[420452706,1776099040855,-2314.34164989,0.00010244,2]
[420452707,1776099040874,-644.79446246,0.00010292,2]
[420452708,1776099040887,-686.09201402,0.00010308,2]
[420452709,1776099040898,-401.24930384,0.00010329,30]
[420452710,1776099040913,-668.65185757,0.00010347,2]
[420452711,1776099040930,-693.3919763,0.00010402,2]
[420452712,1776099040941,-719.04747942,0.00010457,2]
[420452714,1776099040954,-745.65223616,0.00010512,2]
[420452715,1776099040972,-794.05021862,0.00010565,2]
[420452716,1776099040982,-773.2413689,0.00010567,2]
[420452717,1776099040998,-801.85129955,0.00010622,2]
[420452718,1776099041017,-831.51979763,0.00010677,2]
[420452719,1776099041029,-862.28603014,0.00010732,2]
[420452720,1776099041040,-894.19061326,0.00010787,2]
[420452721,1776099041058,-927.27566595,0.00010842,2]
[420452722,1776099041068,-151.0,0.00010846,2]
[420452723,1776099041095,-961.58486559,0.00010897,2]
[420452724,1776099041104,-997.16350561,0.00010952,2]
[420452726,1776099041118,-288.62231024,0.00010958,2]
[420452727,1776099041139,-500.0,0.00010958,2]
[420452728,1776099041160,-151.0,0.00010958,2]
[420452729,1776099041171,-509.91109646,0.00010958,2]
[420452730,1776099041187,-500.0,0.00010958,2]
[420452731,1776099041197,-4198.96,0.00010958,2]
[420452732,1776099041208,-500.0,0.00010958,2]
[420452733,1776099041217,-500.0,0.00010958,2]
[420452734,1776099041236,-200.0,0.00010959,2]
[420452735,1776099041249,-151.0,0.00010959,2]
[420452737,1776099041259,-417.94291683,0.00011232,2]
[420452738,1776099041275,-500.0,0.00011232,2]
[420452739,1776099041285,-4198.96,0.00011232,2]
[420452740,1776099041301,-500.0,0.00011232,2]
[420452741,1776099041314,-505.4859206,0.00011232,2]
[420452742,1776099041324,-575.07825028,0.00011335,2]
[420452743,1776099041334,-261.21125069,0.00011453,2]
[420452744,1776099041343,-500.0,0.00011453,2]
[420452745,1776099041354,-500.0,0.00011453,2]
[420452746,1776099041365,-500.0,0.00011453,2]
[420452747,1776099041374,-500.0,0.00011453,2]
[420452748,1776099041384,-507.95438715,0.00011453,2]
[420452749,1776099041393,-500.0,0.00011482,2]
[420452751,1776099041409,-500.0,0.00011506,2]
[420452752,1776099041419,-4198.96,0.00011506,2]
[420452753,1776099041429,-500.0,0.00011506,2]
[420452754,1776099041441,-4059.15438477,0.00011513,2]
[420452755,1776099041452,-500.0,0.00011582,2]
[420452756,1776099041461,-517.19822348,0.00011582,2]
[420452757,1776099041474,-1406.0,0.00011586,2]
[420452758,1776099041483,-645.0,0.00011586,2]
[420452759,1776099041496,-2207.0,0.00011586,2]
[420452760,1776099041505,-577.132678,0.00011662,2]
[420452761,1776099041518,-500.0,0.00011702,2]
[420452762,1776099041529,-500.0,0.00011702,2]
[420452764,1776099041542,-500.0,0.00011702,2]
[420452765,1776099041555,-508.37583609,0.0001178,2]
[420452766,1776099041577,-4198.96,0.0001178,2]
[420452767,1776099041589,-500.0,0.0001178,2]
[420452768,1776099041599,-40163.740092,0.000119,2]
[420452769,1776099041614,-1000.0,0.00012001,2]
[420452770,1776099041633,-1000.0,0.0001203,2]
[420452771,1776099041647,-4198.96,0.00012054,2]
[420452772,1776099041674,-500.0,0.00012054,2]
[420452774,1776099041684,-1000.0,0.0001213,2]
[420452775,1776099041710,-5000.0,0.00012186,2]
[420452776,1776099041737,-1000.0,0.0001225,2]
[420452777,1776099041752,-1000.0,0.0001225,2]
[420452778,1776099041779,-4198.96,0.00012328,2]
[420452779,1776099041790,-500.0,0.00012328,2]
[420452780,1776099041835,-668.98,0.00012329,2]
[420452782,1776099041847,-557.48,0.00012329,2]
[420452783,1776099041884,-464.57,0.00012329,2]
[420452784,1776099041894,-387.14,0.00012329,2]
[420452785,1776099041978,-322.61,0.00012329,2]
[420452786,1776099042017,-268.85,0.00012329,2]
[420452788,1776099042081,-224.04,0.00012329,2]
[420452789,1776099042122,-186.7,0.00012329,2]
[420452790,1776099042142,-155.58,0.00012329,2]
[420452791,1776099042172,-777.93,0.00012329,2]
[420452792,1776099042187,-1500.0,0.00012549,2]
[420452793,1776099042215,-1500.0,0.00012578,2]
[420452794,1776099042231,-359.69128128,0.00012594,2]
[420452796,1776099042252,-4198.96,0.00012602,2]
[420452797,1776099042267,-500.0,0.00012602,2]
[420452798,1776099042281,-1500.0,0.00012678,2]
[420452799,1776099042307,-1500.0,0.00012798,2]
[420452800,1776099042329,-480.00000005,0.00012798,2]
[420452801,1776099042342,-4198.96,0.00012876,2]
[420452802,1776099042354,-500.0,0.00012876,2]
[420452803,1776099042370,-500.0,0.00012926,2]
[420452804,1776099042382,-4059.15438477,0.0001305,2]
[420452805,1776099042393,-57099.33706053,0.000131,2]
[420452807,1776099042408,-2000.0,0.00013126,2]
[420452808,1776099042437,-4198.96,0.0001315,2]
[420452810,1776099042447,-500.0,0.0001315,2]
[420452811,1776099042471,-163.0743128,0.00013182,2]
[420452812,1776099042482,-2000.0,0.00013226,2]
[420452813,1776099042494,-210.75940143,0.00013233,14]
[420452814,1776099042516,-635.26085787,0.00013335,2]
[420452815,1776099042527,-2000.0,0.00013346,2]
[420452817,1776099042555,-4198.96,0.00013424,2]
[420452819,1776099042567,-500.0,0.00013424,2]
[420452820,1776099042579,-855.34248703,0.00013674,2]
[420452821,1776099042608,-500.0,0.00013698,2]
[420452822,1776099042630,-500.0,0.00013698,2]
[420452823,1776099042640,-500.0,0.00013698,2]
[420452824,1776099042672,-500.0,0.00013698,2]
[420452825,1776099042682,-500.0,0.00013698,2]
[420452826,1776099042694,-500.0,0.00013698,2]
[420452828,1776099042706,-500.0,0.00013698,2]
[420452829,1776099042726,-500.0,0.00013698,2]
[420452830,1776099042736,-500.0,0.00013698,2]
[420452831,1776099042752,-500.0,0.00013698,2]
[420452832,1776099042771,-500.0,0.00013698,2]
[420452833,1776099042792,-500.0,0.00013698,2]
[420452834,1776099042806,-500.0,0.00013698,2]
[420452835,1776099042819,-500.0,0.00013698,2]
[420452836,1776099042834,-500.0,0.00013698,2]
[420452837,1776099042853,-500.0,0.00013698,2]
[420452839,1776099042866,-247.33288889,0.00013698,2]
[420452840,1776099042893,-4198.96,0.00013698,2]
[420452841,1776099042902,-500.0,0.00013698,2]
[420452842,1776099042917,-156.0,0.00013699,2]
[420452843,1776099042936,-24164.4642689,0.00013699,2]
[420452844,1776099042951,-151.0,0.00013699,2]
[420452845,1776099042975,-151.0,0.00013699,2]
[420452846,1776099042984,-151.0,0.00013699,2]
[420452847,1776099042997,-151.0,0.00013699,2]
[420452848,1776099043022,-151.0,0.00013699,2]
[420452850,1776099043035,-151.0,0.00013699,2]
[420452851,1776099043047,-151.0,0.00013699,2]
[420452852,1776099043063,-151.0,0.00013699,2]
[420452853,1776099043076,-151.0,0.00013699,2]
[420452854,1776099043086,-151.0,0.00013699,2]
[420452855,1776099043108,-151.0,0.00013699,2]
[420452856,1776099043127,-151.0,0.00013699,2]
[420452857,1776099043138,-151.0,0.00013699,2]
[420452858,1776099043148,-151.0,0.00013699,2]
[420452859,1776099043166,-240.224374,0.00013699,2]
[420452861,1776099043176,-183.41748,0.00013699,2]
[420452862,1776099043186,-183.41748,0.00013699,2]
[420452863,1776099043201,-183.41748,0.00013699,2]
[420452864,1776099043212,-183.41748,0.00013699,2]
[420452865,1776099043221,-183.41748,0.00013699,2]
[420452866,1776099043236,-183.41748,0.00013699,2]
[420452867,1776099043250,-183.41748,0.00013699,2]
[420452868,1776099043260,-183.41748,0.00013699,2]
[420452869,1776099043281,-183.41748,0.00013699,2]
[420452870,1776099043291,-183.41748,0.00013699,2]
[420452871,1776099043300,-183.41748,0.00013699,2]
[420452873,1776099043318,-183.41748,0.00013699,2]
[420452874,1776099043334,-183.41748,0.00013699,2]
[420452875,1776099043345,-183.41748,0.00013699,2]
[420452876,1776099043358,-183.41748,0.00013699,2]
[420452877,1776099043375,-183.41748,0.00013699,2]
[420452878,1776099043389,-183.41748,0.00013699,2]
[420452879,1776099043403,-183.41748,0.00013699,2]
[420452880,1776099043430,-183.41748,0.00013699,2]
[420452881,1776099043440,-183.417479,0.00013699,2]
[420452882,1776099043462,-400.0,0.00013699,2]
[420452884,1776099043472,-400.0,0.00013699,2]
[420452885,1776099043482,-400.0,0.00013699,2]
[420452886,1776099043503,-400.0,0.00013699,2]
[420452887,1776099043514,-400.0,0.00013699,2]
[420452888,1776099043524,-400.0,0.00013699,2]
[420452889,1776099043535,-400.0,0.00013699,2]
[420452890,1776099043556,-400.0,0.00013699,2]
[420452891,1776099043566,-400.0,0.00013699,2]
[420452892,1776099043576,-400.0,0.00013699,2]
[420452893,1776099043599,-400.0,0.00013699,2]
[420452895,1776099043609,-400.0,0.00013699,2]
[420452896,1776099043618,-400.0,0.00013699,2]
[420452897,1776099043636,-400.0,0.00013699,2]
[420452898,1776099043646,-400.0,0.00013699,2]
[420452899,1776099043657,-400.0,0.00013699,2]
[420452900,1776099043683,-400.0,0.00013699,2]
[420452901,1776099043694,-400.0,0.00013699,2]
[420452902,1776099043718,-400.0,0.00013699,2]
[420452903,1776099043741,-400.0,0.00013699,2]
[420452905,1776099043756,-151.0,0.00013699,2]
[420452906,1776099043766,-208.273126,0.00013699,2]
[420452907,1776099043788,-643.083661,0.00013699,2]
[420452908,1776099043817,-643.083661,0.00013699,2]
[420452909,1776099043827,-643.083661,0.00013699,2]
[420452910,1776099043849,-643.083661,0.00013699,2]
[420452911,1776099043859,-643.083661,0.00013699,2]
[420452912,1776099043869,-643.083661,0.00013699,2]
[420452913,1776099043882,-643.083661,0.00013699,2]
[420452914,1776099043899,-643.083661,0.00013699,2]
[420452916,1776099043909,-643.083661,0.00013699,2]
[420452917,1776099043922,-643.083661,0.00013699,2]
[420452918,1776099043940,-643.083661,0.00013699,2]
[420452919,1776099043959,-643.083661,0.00013699,2]
[420452920,1776099043970,-643.083661,0.00013699,2]
[420452921,1776099043986,-643.083661,0.00013699,2]
[420452922,1776099043999,-643.083661,0.00013699,2]
[420452923,1776099044013,-643.083661,0.00013699,2]
[420452924,1776099044030,-643.083661,0.00013699,2]
[420452925,1776099044041,-643.083661,0.00013699,2]
[420452927,1776099044059,-643.083661,0.00013699,2]
[420452928,1776099044072,-643.083653,0.00013699,2]
[420452929,1776099044087,-151.0,0.00013699,2]
[420452930,1776099044106,-151.0,0.00013699,2]
[420452931,1776099044120,-151.0,0.00013699,2]
[420452932,1776099044131,-151.0,0.00013699,2]
[420452933,1776099044145,-151.0,0.00013699,2]
[420452934,1776099044177,-197.285328,0.00013699,2]
[420452935,1776099044188,-166.143968,0.00013699,2]
[420452937,1776099044218,-166.143968,0.00013699,2]
[420452938,1776099044229,-166.143968,0.00013699,2]
[420452939,1776099044249,-166.143968,0.00013699,2]
[420452940,1776099044267,-166.143968,0.00013699,2]
[420452941,1776099044278,-166.143968,0.00013699,2]
[420452942,1776099044294,-166.143968,0.00013699,2]
[420452943,1776099044322,-166.143968,0.00013699,2]
[420452944,1776099044335,-166.143968,0.00013699,2]
[420452945,1776099044349,-166.143968,0.00013699,2]
[420452946,1776099044373,-166.143968,0.00013699,2]
[420452948,1776099044391,-166.143968,0.00013699,2]
[420452949,1776099044402,-166.143968,0.00013699,2]
[420452950,1776099044419,-166.143968,0.00013699,2]
[420452951,1776099044429,-166.143968,0.00013699,2]
[420452952,1776099044441,-166.143968,0.00013699,2]
[420452953,1776099044453,-166.143968,0.00013699,2]
[420452954,1776099044471,-166.143968,0.00013699,2]
[420452955,1776099044490,-166.143968,0.00013699,2]
[420452956,1776099044503,-166.143969,0.00013699,2]
[420452957,1776099044515,-1847.379313,0.00013699,2]
[420452959,1776099044526,-500.0,0.00013699,2]
[420452960,1776099044538,-1038.59,0.00013699,2]
[420452961,1776099044555,-1038.59,0.00013699,2]
[420452962,1776099044565,-1038.59,0.00013699,2]
[420452963,1776099044575,-1038.59,0.00013699,2]
[420452964,1776099044594,-1038.59,0.00013699,2]
[420452965,1776099044605,-1038.59,0.00013699,2]
[420452966,1776099044615,-1038.59,0.00013699,2]
[420452967,1776099044627,-1038.59,0.00013699,2]
[420452968,1776099044643,-1038.59,0.00013699,2]
[420452969,1776099044655,-1038.59,0.00013699,2]
[420452971,1776099044669,-1038.59,0.00013699,2]
[420452972,1776099044685,-1038.59,0.00013699,2]
[420452973,1776099044697,-1038.59,0.00013699,2]
[420452974,1776099044711,-1038.59,0.00013699,2]
[420452975,1776099044727,-1038.59,0.00013699,2]
[420452976,1776099044738,-1038.59,0.00013699,2]
[420452977,1776099044762,-1038.59,0.00013699,2]
[420452978,1776099044772,-1038.59,0.00013699,2]
[420452979,1776099044786,-1038.59,0.00013699,2]
[420452980,1776099044798,-1525.48,0.00013699,2]
[420452981,1776099044809,-1000.0,0.00013699,2]
[420452983,1776099044819,-263.37354366,0.00013699,2]
[420452984,1776099044831,-20000.0,0.00013699,2]
[420452985,1776099044844,-20000.0,0.00013699,2]
[420452986,1776099044854,-20000.0,0.00013699,2]
[420452987,1776099044869,-11322.72659809,0.00013699,2]
[420452988,1776099044880,-1113.33608714,0.00013774,2]